bitfinex/quotes_ETHUSD_20250520
["timestamp","ask_amount","ask_price","bid_price","bid_amount"]
[1747762948131,4.01348531,2491.6,2491.5,38.89378789]
[1747762948517,4.01348531,2491.6,2491.5,17.90977084]
[1747762948719,4.01348531,2491.6,2491.5,32.32763884]
[1747762949340,4.01348531,2491.6,2491.5,35.69494084]
[1747762949845,4.01336249,2491.7,2491.6,8.0]
[1747762950062,4.01336249,2491.7,2491.6,12.11949408]
[1747762950946,4.01336249,2491.7,2491.6,11.56949408]
[1747762952627,4.01336249,2491.7,2491.6,32.7562885]
[1747762953811,4.01336249,2491.7,2491.6,21.18679442]
[1747762954056,4.01336249,2491.7,2491.6,29.18679442]
[1747762955661,4.01336249,2491.7,2491.6,8.37779442]
[1747762955827,4.01336249,2491.7,2491.6,29.18579442]
[1747762956962,4.01336249,2491.7,2491.6,20.16379442]
[1747762957159,4.01336249,2491.7,2491.6,29.18579442]
[1747762957858,4.01336249,2491.7,2491.6,28.808]
[1747762960759,4.01396861,2491.3,2491.2,25.333]
[1747762960959,4.01396861,2491.3,2491.2,49.22703787]
[1747762961259,4.01396861,2491.3,2491.2,28.41903787]
[1747762961461,4.01396861,2491.3,2491.2,56.69503087]
[1747762961666,4.01396861,2491.3,2491.2,55.11072487]
[1747762962162,4.01396861,2491.3,2491.2,55.48886942]
[1747762964165,0.1,2491.9,2491.2,55.48886942]
[1747762964166,4.01329245,2491.8,2491.4,0.8063]
[1747762964383,0.1,2491.9,2491.6,0.55]
[1747762964532,1.49638149,2492.1,2491.8,9.3563]
[1747762965171,4.01300212,2491.9,2491.8,0.8063]
[1747762965373,4.01300212,2491.9,2491.8,36.776415]
[1747762965546,4.01300212,2491.9,2491.8,36.9928415]
[1747762965956,4.01300212,2491.9,2491.8,16.1848415]
[1747762966270,4.01300212,2491.9,2491.8,28.808]
[1747762966729,4.01300212,2491.9,2491.8,29.18598563]
[1747762969231,4.01300212,2491.9,2491.8,38.04256163]
[1747762969839,4.01300212,2491.9,2491.8,38.59256163]
[1747762970776,4.01300212,2491.9,2491.8,16.59447663]
[1747762970978,4.01300212,2491.9,2491.8,35.70246163]
[1747762971998,4.01300212,2491.9,2491.8,14.89546163]
[1747762972368,4.01300212,2491.9,2491.8,35.68446163]
[1747762972966,4.01300212,2491.9,2491.8,8.37798563]
[1747762973299,4.01300212,2491.9,2491.8,21.16698563]
[1747762974905,4.01300212,2491.9,2491.8,20.789]
[1747762976010,4.01300212,2491.9,2491.8,11.767]
[1747762976301,4.01300212,2491.9,2491.8,20.788]
[1747762977206,0.7803,2492.0,2491.3,0.47397872]
[1747762977368,4.01380749,2491.4,2491.3,0.47397872]
[1747762977697,4.01380749,2491.4,2491.3,31.10662368]
[1747762977862,4.01380749,2491.4,2491.3,31.01131393]
[1747762978064,0.8066,2491.9,2491.4,8.0]
[1747762978418,4.01351589,2491.6,2491.5,20.789]
[1747762978811,4.01351589,2491.6,2491.5,26.709339]
[1747762979112,4.01351589,2491.6,2491.5,30.40250429]
[1747762979313,4.01351589,2491.6,2491.5,30.78117326]
[1747762979475,4.01351589,2491.6,2491.5,30.30498826]
[1747762979672,4.01351589,2491.6,2491.5,26.98117326]
[1747762980383,4.01351589,2491.6,2491.5,34.98117326]
[1747762980581,4.01351589,2491.6,2491.5,32.86083426]
[1747762980807,4.01351589,2491.6,2491.5,38.26093426]
[1747762981619,4.01351589,2491.6,2491.5,36.05693426]
[1747762984412,4.01351589,2491.6,2491.5,23.83883426]
[1747762984614,4.01351589,2491.6,2491.5,29.16766897]
[1747762985174,4.01351589,2491.6,2491.5,8.37866897]
[1747762985623,4.01351589,2491.6,2491.5,29.16766897]
[1747762987176,4.01351589,2491.6,2491.5,8.37866897]
[1747762987813,4.01351589,2491.6,2491.5,29.16766897]
[1747762987991,4.01351589,2491.6,2491.5,28.789]
[1747762988390,4.01351589,2491.6,2491.5,19.768]
[1747762988617,4.01351589,2491.6,2491.5,28.79]
[1747762990418,4.01351589,2491.6,2491.5,19.768]
[1747762990582,4.01351589,2491.6,2491.5,28.79]
[1747762992432,4.01351589,2491.6,2491.5,8.0]
[1747762992641,4.01351589,2491.6,2491.5,28.79]
[1747762993235,4.01351589,2491.6,2491.5,8.0]
[1747762993434,4.01351589,2491.6,2491.5,28.79]
[1747762994032,4.01351589,2491.6,2491.5,29.16827579]
[1747762995242,4.01351589,2491.6,2491.5,28.79]
[1747762998625,4.01351589,2491.6,2491.5,29.16858356]
[1747762998948,4.01351589,2491.6,2491.5,21.16858356]
[1747762999149,4.82691589,2491.6,2491.5,0.37858356]
[1747762999315,4.82691589,2491.6,2491.5,21.16858356]
[1747763000049,4.82691589,2491.6,2491.5,20.79]
[1747763001149,4.82691589,2491.6,2491.5,20.791]
[1747763001823,4.01445202,2491.0,2490.9,0.47397872]
[1747763002148,4.01445202,2491.0,2490.9,52.00159637]
[1747763002314,4.01445202,2491.0,2490.9,52.62617337]
[1747763002945,4.01445202,2491.0,2490.9,53.0049886]
[1747763003149,4.01445202,2491.0,2490.9,46.94979395]
[1747763003748,4.01445202,2491.0,2490.9,26.17679395]
[1747763003954,4.01445202,2491.0,2490.9,46.94979395]
[1747763004578,4.01445202,2491.0,2490.9,37.45281523]
[1747763004860,4.01445202,2491.0,2490.9,38.47581523]
[1747763005059,4.01445202,2491.0,2490.9,29.45281523]
[1747763005258,4.01445202,2491.0,2490.9,38.47581523]
[1747763005768,4.01445202,2491.0,2490.9,38.097]
[1747763006418,4.01445202,2491.0,2490.9,38.098]
[1747763006419,4.81685202,2491.0,2490.9,38.098]
[1747763008364,4.0141573,2491.2,2491.0,8.0]
[1747763008563,4.01429087,2491.1,2491.0,8.0]
[1747763009061,4.01429087,2491.1,2491.0,16.856576]
[1747763009240,4.01429087,2491.1,2491.0,16.0615]
[1747763009426,4.01429087,2491.1,2491.0,8.37817569]
[1747763009626,4.01429087,2491.1,2491.0,17.84553857]
[1747763010127,4.01429087,2491.1,2491.0,15.17383857]
[1747763010554,4.01429087,2491.1,2491.0,14.57383857]
[1747763010755,4.01429087,2491.1,2491.0,12.28053857]
[1747763011566,4.01429087,2491.1,2491.0,17.84553857]
[1747763011870,4.01429087,2491.1,2491.0,12.28053857]
[1747763012166,4.84289087,2491.1,2491.0,29.15317569]
[1747763013571,4.01429087,2491.1,2491.0,28.775]
[1747763013967,4.01429087,2491.1,2491.0,34.821504]
[1747763014166,4.01429087,2491.1,2491.0,32.442966]
[1747763015328,4.01429087,2491.1,2491.0,28.775]
[1747763016168,4.01429087,2491.1,2491.0,29.15353495]
[1747763017071,4.01429087,2491.1,2491.0,8.37853495]
[1747763017275,4.01429087,2491.1,2491.0,29.15353495]
[1747763017572,4.01429087,2491.1,2491.0,28.775]
[1747763019051,4.81529087,2491.1,2491.0,28.775]
[1747763019237,4.81529087,2491.1,2491.0,8.0]
[1747763019442,4.81529087,2491.1,2491.0,28.775]
[1747763019671,4.01429087,2491.1,2491.0,28.775]
[1747763022176,4.01429087,2491.1,2491.0,29.15363872]
[1747763026285,4.01429087,2491.1,2491.0,33.0560016]
[1747763026920,4.01429087,2491.1,2491.0,41.9125776]
[1747763027586,4.01429087,2491.1,2491.0,40.0440906]
[1747763027787,4.01429087,2491.1,2491.0,37.7111246]
[1747763028803,4.01429087,2491.1,2491.0,38.2611246]
[1747763028976,4.01332423,2491.7,2491.2,0.7671]
[1747763029512,4.01388701,2491.4,2491.2,0.7741]
[1747763029720,4.01388701,2491.4,2491.1,0.55]
[1747763029892,4.01388701,2491.4,2491.3,9.3241]
[1747763030092,4.01373711,2491.5,2491.4,8.55]
[1747763030293,4.01373711,2491.5,2491.4,29.157576]
[1747763031494,4.01373711,2491.5,2491.4,29.53621472]
[1747763034808,4.01373711,2491.5,2491.4,26.14254372]
[1747763035008,4.01373711,2491.5,2491.4,29.68956598]
[1747763037288,4.01351643,2491.6,2491.4,29.68956598]
[1747763037481,4.01351643,2491.6,2491.5,9.406576]
[1747763037681,4.01351643,2491.6,2491.5,18.176276]
[1747763038119,4.01351643,2491.6,2491.5,14.64821272]
[1747763038423,4.01351643,2491.6,2491.5,17.69023409]
[1747763038622,4.01351643,2491.6,2491.5,17.38524009]
[1747763040699,4.01351643,2491.6,2491.5,15.41677509]
[1747763041427,4.01351643,2491.6,2491.5,28.749]
[1747763041618,4.01351643,2491.6,2491.5,8.0]
[1747763041830,4.01351643,2491.6,2491.5,28.749]
[1747763042746,4.01351643,2491.6,2491.5,29.12675555]
[1747763043607,4.01351643,2491.6,2491.5,8.37775555]
[1747763043803,4.01351643,2491.6,2491.5,29.12675555]
[1747763045247,4.01351643,2491.6,2491.5,8.37775555]
[1747763045454,4.83071643,2491.6,2491.5,21.12675555]
[1747763046149,4.83071643,2491.6,2491.5,0.37775555]
[1747763046328,4.83071643,2491.6,2491.5,21.12675555]
[1747763047221,4.83071643,2491.6,2491.5,20.749]
[1747763048252,4.01351643,2491.6,2491.5,20.749]
[1747763048458,4.01400675,2491.3,2491.0,8.0]
[1747763048619,4.01429087,2491.1,2491.0,8.0]
[1747763048815,4.01429087,2491.1,2491.0,28.75]
[1747763050274,4.01429087,2491.1,2491.0,19.728]
[1747763050445,4.01429087,2491.1,2491.0,29.12819853]
[1747763051032,4.01429087,2491.1,2491.0,31.69897953]
[1747763051876,4.01429087,2491.1,2491.0,29.12819853]
[1747763052384,4.01429087,2491.1,2491.0,22.67697953]
[1747763052593,4.01429087,2491.1,2491.0,29.12919853]
[1747763052788,4.01429087,2491.1,2491.0,31.69597953]
[1747763053388,4.01429087,2491.1,2491.0,29.12919853]
[1747763054585,4.01377587,2491.5,2491.0,29.12919853]
[1747763054586,0.7725,2491.6,2491.0,43.25523741]
[1747763054890,4.01420749,2491.2,2491.0,34.39866141]
[1747763055186,4.0141132,2491.3,2491.1,9.406576]
[1747763055487,4.0141132,2491.3,2491.2,8.856576]
[1747763055991,4.0141132,2491.3,2491.2,16.47367153]
[1747763056147,4.0141132,2491.3,2491.2,20.15044487]
[1747763056755,4.0141132,2491.3,2491.2,20.70044487]
[1747763057704,4.0141132,2491.3,2491.2,12.05497187]
[1747763057906,4.0141132,2491.3,2491.2,21.46154787]
[1747763058132,4.01284109,2492.0,2491.4,0.8219]
[1747763058413,4.01378298,2491.5,2491.4,1.3719]
[1747763058608,4.01378298,2491.5,2491.4,31.29916319]
[1747763059519,1.49638149,2492.1,2491.6,0.55]
[1747763059739,4.01308196,2491.9,2491.8,9.3219]
[1747763059884,4.01308196,2491.9,2491.8,47.231476]
[1747763060084,4.01308196,2491.9,2491.8,51.13383888]
[1747763060937,5.50913282,2492.1,2491.9,0.55]
[1747763060938,4.01284109,2492.0,2491.9,0.55]
[1747763061080,4.01284109,2492.0,2491.9,17.406576]
[1747763061720,4.01284109,2492.0,2491.9,17.78477453]
[1747763062302,5.50914291,2492.1,2491.9,17.78477453]
[1747763062496,4.01284109,2492.0,2491.9,8.92819853]
[1747763062694,4.01284109,2492.0,2491.9,17.78477453]
[1747763063817,4.01284109,2492.0,2491.9,17.23477453]
[1747763064320,5.50920647,2492.1,2492.0,0.55]
[1747763065914,5.50920647,2492.1,2492.0,0.92819853]
[1747763066117,5.50920647,2492.1,2492.0,4.83056141]
[1747763066502,5.50920647,2492.1,2492.0,13.30256141]
[1747763068423,1.49638149,2492.1,2492.0,21.85256141]
[1747763068625,1.49638149,2492.1,2492.0,31.48263741]
[1747763069217,5.50906155,2492.1,2492.0,31.48263741]
[1747763069392,5.50906155,2492.1,2492.0,29.35441441]
[1747763069727,5.50906155,2492.1,2492.0,27.97354041]
[1747763070989,0.8832,2492.9,2492.2,0.55]
[1747763071194,4.0118083,2492.7,2492.4,8.55]
[1747763071493,4.0120361,2492.5,2492.4,8.55]
[1747763071788,4.01197111,2492.6,2492.4,17.406576]
[1747763071992,4.01197111,2492.6,2492.5,3.5379776]
[1747763072431,4.01197111,2492.6,2492.5,2.9879776]
[1747763072741,4.01197111,2492.6,2492.5,11.8445536]
[1747763073039,4.01197111,2492.6,2492.5,12.3945536]
[1747763073396,0.1,2492.9,2492.8,0.55]
[1747763073618,0.1,2492.9,2492.8,56.384686]
[1747763073930,4.11139235,2492.9,2492.8,56.384686]
[1747763074133,4.11139235,2492.9,2492.8,50.861679]
[1747763074331,4.11139235,2492.9,2492.8,46.041]
[1747763074506,4.11139235,2492.9,2492.8,54.897576]
[1747763074833,4.11139235,2492.9,2492.8,55.447576]
[1747763075708,4.11139235,2492.9,2492.8,54.897576]
[1747763076137,4.11139235,2492.9,2492.8,59.34993888]
[1747763077235,4.11139235,2492.9,2492.8,57.02326288]
[1747763077534,4.11139235,2492.9,2492.8,46.039]
[1747763080633,4.11139235,2492.9,2492.8,25.319]
[1747763080836,4.11139235,2492.9,2492.8,38.038]
[1747763089681,4.11139235,2492.9,2492.8,38.871]
[1747763089974,4.11139235,2492.9,2492.8,38.038]
[1747763091294,0.1,2492.9,2492.8,49.8418]
[1747763091578,0.1,2492.9,2492.8,60.081376]
[1747763091971,0.1,2492.9,2492.8,60.45870084]
[1747763093479,0.1,2492.9,2492.8,51.60212484]
[1747763093684,0.1,2492.9,2492.8,60.45870084]
[1747763094696,4.11139235,2492.9,2492.8,60.45870084]
[1747763094857,0.1,2492.9,2492.8,60.45870084]
[1747763095059,4.11139235,2492.9,2492.8,60.45870084]
[1747763095893,4.11139235,2492.9,2492.8,58.75370484]
[1747763097259,0.1,2492.9,2492.8,58.75370484]
[1747763097464,4.01073422,2493.4,2492.8,58.75370484]
[1747763097465,4.01099636,2493.2,2492.9,8.55]
[1747763097769,4.01099636,2493.2,2493.1,8.0]
[1747763098399,4.78199636,2493.2,2493.1,20.05432484]
[1747763098698,4.78199636,2493.2,2493.1,29.07132484]
[1747763099803,4.01099636,2493.2,2493.1,29.07132484]
[1747763100866,4.01099636,2493.2,2493.1,8.37732484]
[1747763101104,4.01099636,2493.2,2493.1,29.07032484]
[1747763101968,4.01099636,2493.2,2493.1,8.37732484]
[1747763102199,4.83819636,2493.2,2493.1,21.07032484]
[1747763102925,4.83819636,2493.2,2493.1,20.693]
[1747763103951,7.01117869,2493.2,2493.1,11.676]
[1747763104156,6.98507869,2493.2,2493.1,11.676]
[1747763106206,4.81209636,2493.2,2493.1,11.676]
[1747763110230,4.81209636,2493.2,2493.1,20.694]
[1747763111548,4.01139235,2492.9,2492.8,17.319]
[1747763111709,4.01139235,2492.9,2492.8,38.015]
[1747763112633,4.78329235,2492.9,2492.8,38.015]
[1747763112838,4.78329235,2492.9,2492.8,28.997]
[1747763113052,4.78329235,2492.9,2492.8,38.015]
[1747763114864,4.78329235,2492.9,2492.8,28.997]
[1747763115165,4.78329235,2492.9,2492.8,38.015]
[1747763115670,4.78329235,2492.9,2492.8,17.319]
[1747763115839,4.78329235,2492.9,2492.8,38.015]
[1747763116041,4.78329235,2492.9,2492.8,17.319]
[1747763116239,4.78329235,2492.9,2492.8,38.015]
[1747763116761,6.95627468,2492.9,2492.8,17.319]
[1747763116982,6.95627468,2492.9,2492.8,28.997]
[1747763117191,4.78329235,2492.9,2492.8,28.997]
[1747763117742,4.01139235,2492.9,2492.8,28.997]
[1747763118353,4.01139235,2492.9,2492.8,17.319]
[1747763118560,4.78739235,2492.9,2492.8,38.017]
[1747763119675,4.01139235,2492.9,2492.8,38.017]
[1747763120678,4.79529235,2492.9,2492.8,38.017]
[1747763121183,4.01139235,2492.9,2492.8,38.017]
[1747763121488,4.01139235,2492.9,2492.8,41.8187]
[1747763123393,4.01139235,2492.9,2492.8,38.017]
[1747763123777,4.79529235,2492.9,2492.8,38.017]
[1747763124082,4.79529235,2492.9,2492.8,37.996]
[1747763125804,4.01139235,2492.9,2492.8,37.996]
[1747763130119,4.01139235,2492.9,2492.8,17.319]
[1747763130423,4.01139235,2492.9,2492.8,37.996]
[1747763131086,4.01139235,2492.9,2492.8,39.16376887]
[1747763135803,4.01139235,2492.9,2492.8,39.54160842]
[1747763136229,4.01122209,2493.1,2492.8,56.39818442]
[1747763136432,4.78008236,2493.8,2492.8,56.39818442]
[1747763136433,4.01010546,2493.7,2492.9,16.856576]
[1747763136595,4.01107055,2493.1,2493.0,3.90236288]
[1747763136928,4.01107055,2493.1,2493.0,12.86032788]
[1747763137533,4.01094832,2493.2,2493.1,8.0]
[1747763139332,4.01010546,2493.7,2493.1,8.0]
[1747763139333,4.01010546,2493.7,2493.1,8.8052]
[1747763139538,0.7661,2495.1,2494.0,0.55]
[1747763139749,4.00802953,2495.0,2494.2,8.0]
[1747763139933,4.77490839,2494.9,2494.2,8.0]
[1747763140121,0.7667,2494.9,2494.4,8.7563]
[1747763140325,4.0088194,2494.5,2494.4,8.7563]
[1747763140539,4.0088194,2494.5,2494.4,0.7563]
[1747763140737,4.0088194,2494.5,2494.4,29.4313]
[1747763142052,4.00835801,2494.8,2494.5,8.0]
[1747763142053,4.00858993,2494.7,2494.5,8.0]
[1747763142217,4.0086587,2494.6,2494.5,11.86811905]
[1747763142413,4.0086587,2494.6,2494.5,20.72469505]
[1747763142616,4.0086587,2494.6,2494.5,18.25226205]
[1747763143132,4.0086587,2494.6,2494.4,1.14961445]
[1747763143335,4.0088194,2494.5,2494.4,1.14961445]
[1747763143538,4.0088194,2494.5,2494.4,29.82061445]
[1747763143720,4.0088194,2494.5,2494.4,0.7563]
[1747763143926,4.0088194,2494.5,2494.4,21.4273]
[1747763148570,4.0088194,2494.5,2494.4,29.4273]
[1747763148869,4.0088194,2494.5,2494.4,33.20948561]
[1747763149273,0.7667,2494.9,2494.6,1.3099]
[1747763149493,0.8151,2496.4,2495.0,0.7599]
[1747763149688,4.00730583,2495.5,2495.2,9.3099]
[1747763149969,4.00730583,2495.5,2495.4,8.0]
[1747763150135,4.00714827,2495.6,2495.5,0.55]
[1747763150335,4.00714827,2495.6,2495.5,21.057576]
[1747763150537,4.00714827,2495.6,2495.5,22.5288466]
[1747763151174,0.1,2495.9,2495.6,0.7603]
[1747763151471,4.00512656,2496.8,2495.9,0.55]
[1747763151673,4.00624974,2496.1,2496.0,46.515]
[1747763151863,4.00624974,2496.1,2496.0,59.27393888]
[1747763153068,4.00617623,2496.2,2496.0,59.27393888]
[1747763153372,4.00617623,2496.2,2496.1,8.856576]
[1747763153531,4.00617623,2496.2,2496.1,8.230932]
[1747763154774,4.00617623,2496.2,2496.1,9.18189248]
[1747763155092,4.00617623,2496.2,2496.1,13.08425536]
[1747763155639,4.00617623,2496.2,2496.1,9.18189248]
[1747763155870,4.00617623,2496.2,2496.1,8.63189248]
[1747763157184,4.00595401,2496.3,2496.2,8.0]
[1747763159790,4.00595401,2496.3,2496.2,8.55]
[1747763160666,4.00595401,2496.3,2496.2,9.338]
[1747763160982,4.00595401,2496.3,2496.2,13.24036288]
[1747763161378,4.00592877,2496.3,2496.2,13.24036288]
[1747763161955,4.00592877,2496.3,2496.2,32.55636288]
[1747763162707,4.00592877,2496.3,2496.2,11.90236288]
[1747763162871,4.00592877,2496.3,2496.2,41.41193888]
[1747763163306,4.00592877,2496.3,2496.2,38.10428688]
[1747763163806,4.00592877,2496.3,2496.2,32.55536288]
[1747763164209,4.00592877,2496.3,2496.2,8.0]
[1747763164368,4.00592877,2496.3,2496.2,28.653]
[1747763164868,4.00592877,2496.3,2496.2,20.653]
[1747763165069,4.00624974,2496.1,2496.0,17.304]
[1747763165306,4.00624974,2496.1,2496.0,45.957]
[1747763165800,4.00624974,2496.1,2496.0,45.956]
[1747763166033,4.00624974,2496.1,2496.0,37.956]
[1747763167404,4.00624974,2496.1,2496.0,17.304]
[1747763167607,4.00624974,2496.1,2496.0,37.956]
[1747763170309,4.00624974,2496.1,2496.0,49.7516]
[1747763170503,4.00624974,2496.1,2496.0,56.371711]
[1747763170708,4.00624974,2496.1,2496.0,55.320281]
[1747763170888,4.00624974,2496.1,2496.0,51.524681]
[1747763171096,4.00624974,2496.1,2496.0,37.956]
[1747763172624,4.00515132,2496.8,2496.0,37.956]
[1747763172625,0.8158,2496.7,2496.1,0.7578]
[1747763172826,0.7724,2497.1,2496.2,8.856576]
[1747763173128,0.7724,2497.1,2496.5,8.0]
[1747763173129,4.00512656,2496.8,2496.5,8.0]
[1747763173280,5.47373198,2497.5,2496.7,8.0]
[1747763173485,4.10496615,2496.9,2496.8,11.903388]
[1747763173692,4.10496615,2496.9,2496.8,32.814047]
[1747763173896,4.10496615,2496.9,2496.8,36.0954517]
[1747763174119,0.1,2496.9,2496.8,41.93221362]
[1747763174430,4.10496615,2496.9,2496.8,41.93221362]
[1747763174791,4.10496615,2496.9,2496.8,11.65543762]
[1747763174989,4.10496615,2496.9,2496.8,29.02303292]
[1747763176144,4.10496615,2496.9,2496.8,0.37403292]
[1747763176298,4.10496615,2496.9,2496.8,11.644]
[1747763177404,4.88446615,2496.9,2496.8,11.644]
[1747763177641,4.0057683,2496.4,2496.3,0.47219444]
[1747763177857,4.0057683,2496.4,2496.3,20.649]
[1747763178162,4.00624974,2496.1,2496.0,17.77619444]
[1747763178299,4.00624974,2496.1,2496.0,29.42019444]
[1747763178722,4.76734974,2496.1,2496.0,28.948]
[1747763180252,4.76734974,2496.1,2496.0,17.304]
[1747763180535,4.76734974,2496.1,2496.0,28.949]
[1747763184818,4.76734974,2496.1,2496.0,17.304]
[1747763185025,4.76734974,2496.1,2496.0,38.019]
[1747763185236,4.76734974,2496.1,2496.0,17.304]
[1747763185457,4.76734974,2496.1,2496.0,29.013]
[1747763186945,4.76734974,2496.1,2496.0,17.304]
[1747763187124,4.76734974,2496.1,2496.0,29.014]
[1747763193044,4.76734974,2496.1,2496.0,38.022]
[1747763195382,4.76734974,2496.1,2496.0,38.023]
[1747763200586,4.00624974,2496.1,2496.0,38.023]
[1747763202450,4.00624974,2496.1,2496.0,39.00659388]
[1747763204780,4.00624974,2496.1,2496.0,38.023]
[1747763206275,4.00624974,2496.1,2496.0,38.8155]
[1747763207061,4.00624974,2496.1,2496.0,29.015]
[1747763207349,4.00624974,2496.1,2496.0,38.022]
[1747763209676,4.00624974,2496.1,2496.0,38.8026]
[1747763209893,4.00624974,2496.1,2496.0,42.68286]
[1747763210684,4.00624974,2496.1,2496.0,50.68286]
[1747763211051,4.00624974,2496.1,2496.0,51.23286]
[1747763211253,4.00624974,2496.1,2496.0,51.06016023]
[1747763212422,4.80586551,2497.0,2496.0,51.06016023]
[1747763212423,4.00482962,2497.0,2496.2,0.7751]
[1747763212609,4.00588968,2496.4,2496.3,1.71731]
[1747763212768,4.00588968,2496.4,2496.3,10.573886]
[1747763213751,4.00588968,2496.4,2496.3,3.81301]
[1747763213952,4.00588968,2496.4,2496.3,2.1090799]
[1747763214153,4.00588968,2496.4,2496.3,2.48638013]
[1747763214459,4.00588968,2496.4,2496.3,23.12438013]
[1747763214893,4.00588968,2496.4,2496.3,2.48638013]
[1747763215100,4.00588968,2496.4,2496.3,23.12438013]
[1747763215883,4.00588968,2496.4,2496.3,22.73261023]
[1747763216192,4.00588968,2496.4,2496.3,28.638]
[1747763216990,4.00588968,2496.4,2496.3,20.638]
[1747763217507,4.00608925,2496.2,2496.0,18.1127]
[1747763217713,4.00624974,2496.1,2496.0,18.1127]
[1747763217913,4.00624974,2496.1,2496.0,46.7497]
[1747763218288,4.00624974,2496.1,2496.0,50.65206288]
[1747763218510,4.00624974,2496.1,2496.0,58.30101488]
[1747763218728,4.00624974,2496.1,2496.0,54.41074388]
[1747763219017,4.00624974,2496.1,2496.0,46.7497]
[1747763219401,4.00624974,2496.1,2496.0,26.1127]
[1747763219600,4.00615302,2496.2,2496.1,8.0]
[1747763220283,4.00624974,2496.1,2496.0,46.7497]
[1747763221285,4.00705241,2495.6,2495.3,0.62959259]
[1747763221508,4.7890448,2495.5,2495.4,11.631]
[1747763221697,6.21573169,2495.5,2495.4,11.631]
[1747763221899,4.7890448,2495.5,2495.4,11.631]
[1747763222620,4.00785539,2495.1,2495.0,25.293]
[1747763222819,4.00737356,2495.4,2495.3,17.7571]
[1747763223819,4.00737356,2495.4,2495.3,29.3891]
[1747763226716,4.00737356,2495.4,2495.3,29.7662344]
[1747763229025,4.00737356,2495.4,2495.3,38.6228104]
[1747763229404,4.00737356,2495.4,2495.3,34.8228454]
[1747763229600,4.00737356,2495.4,2495.3,38.30512994]
[1747763229817,4.00737356,2495.4,2495.3,33.24851894]
[1747763230065,4.00737356,2495.4,2495.3,29.7662344]
[1747763230249,4.00737356,2495.4,2495.3,12.0091344]
[1747763230397,4.00737356,2495.4,2495.3,20.64]
[1747763231803,4.80987356,2495.4,2495.3,11.632]
[1747763232203,4.00785539,2495.1,2495.0,17.293]
[1747763232402,4.00785539,2495.1,2495.0,28.926]
[1747763232601,4.77135539,2495.1,2495.0,28.926]
[1747763239526,22.95135539,2495.1,2495.0,28.926]
[1747763239922,4.00914084,2494.3,2494.2,17.3]
[1747763240135,4.00914084,2494.3,2494.2,28.936]
[1747763246724,4.00914084,2494.3,2494.2,29.60266667]
[1747763246932,4.00914084,2494.3,2494.2,41.50502955]
[1747763247369,4.00914084,2494.3,2494.2,37.60266667]
[1747763252790,4.00914084,2494.3,2494.2,46.61466667]
[1747763253666,4.00914084,2494.3,2494.2,38.61466667]
[1747763254063,4.00914084,2494.3,2494.2,29.60566667]
[1747763254303,4.78854084,2494.3,2494.2,38.61766667]
[1747763254905,4.78854084,2494.3,2494.2,29.60566667]
[1747763255493,4.78854084,2494.3,2494.2,29.60666667]
[1747763256587,15.19654084,2494.3,2494.2,29.60666667]
[1747763258604,15.74654084,2494.3,2494.2,29.60666667]
[1747763258913,19.96754084,2494.3,2494.2,29.60666667]
[1747763260527,13.33854084,2494.3,2494.2,29.60666667]
[1747763262799,15.74654084,2494.3,2494.2,29.60666667]
[1747763262995,28.98254084,2494.3,2494.2,0.66666667]
[1747763263217,28.98254084,2494.3,2494.2,0.44892319]
[1747763263392,29.5050627,2494.3,2494.2,0.44892319]
[1747763264221,15.74654084,2494.3,2494.2,0.44892319]
[1747763265931,17.91648078,2494.3,2494.2,0.44892319]
[1747763266233,4.78854084,2494.3,2494.2,0.44892319]
[1747763266411,4.00914084,2494.3,2494.2,9.46492319]
[1747763266733,4.00914084,2494.3,2494.2,11.23131551]
[1747763267346,4.00914084,2494.3,2494.2,10.27482319]
[1747763268450,4.00914084,2494.3,2494.2,9.46392319]
[1747763268753,4.00914084,2494.3,2494.2,0.44892319]
[1747763271456,4.83574084,2494.3,2494.2,12.09192319]
[1747763276560,4.00914084,2494.3,2494.2,12.09192319]
[1747763281631,8.23014084,2494.3,2494.2,12.09192319]
[1747763281933,4.00914084,2494.3,2494.2,12.09192319]
[1747763287249,4.00914084,2494.3,2494.2,23.08429551]
[1747763288344,4.00914084,2494.3,2494.2,23.46330936]
[1747763289575,4.00914084,2494.3,2494.2,15.46330936]
[1747763291573,4.00907242,2494.4,2494.3,0.7996]
[1747763291776,4.00907242,2494.4,2494.3,8.856576]
[1747763291976,4.00907242,2494.4,2494.3,12.07412454]
[1747763292470,4.00907242,2494.4,2494.3,20.45313839]
[1747763292866,4.00907242,2494.4,2494.3,11.59656239]
[1747763293063,4.00907242,2494.4,2494.3,3.59656239]
[1747763293378,4.00907242,2494.4,2494.3,21.83061385]
[1747763294047,4.00907242,2494.4,2494.3,21.4516]
[1747763294376,4.00907242,2494.4,2494.3,30.308176]
[1747763294671,4.00907242,2494.4,2494.3,28.242733]
[1747763295275,4.00907242,2494.4,2494.3,36.242733]
[1747763295441,4.00889921,2494.5,2494.4,0.7996]
[1747763295775,4.00889921,2494.5,2494.4,34.962176]
[1747763296365,4.00889921,2494.5,2494.4,51.353653]
[1747763296774,4.00889921,2494.5,2494.4,49.57347671]
[1747763297766,4.00889921,2494.5,2494.4,55.99029271]
[1747763297971,4.00889921,2494.5,2494.4,59.89265559]
[1747763299780,4.00889921,2494.5,2494.4,59.39360959]
[1747763299965,4.00889921,2494.5,2494.4,42.02307959]
[1747763300274,4.00889921,2494.5,2494.4,47.13271671]
[1747763300467,4.00889921,2494.5,2494.4,55.98929271]
[1747763302081,4.00889921,2494.5,2494.4,52.07756371]
[1747763305080,4.00856984,2494.7,2494.5,0.7754]
[1747763305297,4.008229,2494.9,2494.8,0.7754]
[1747763305447,4.008229,2494.9,2494.8,29.260976]
[1747763305645,4.00849801,2494.7,2494.6,4.67776288]
[1747763305960,4.00849801,2494.7,2494.6,29.4164]
[1747763306155,4.00849801,2494.7,2494.6,21.79451671]
[1747763307186,4.00839123,2494.8,2494.6,29.79251671]
[1747763307487,4.00817668,2494.9,2494.8,0.7906]
[1747763307658,4.00817668,2494.9,2494.8,9.647176]
[1747763307867,4.00817668,2494.9,2494.8,13.51360527]
[1747763308808,4.00817668,2494.9,2494.8,21.89172198]
[1747763309024,4.00817668,2494.9,2494.8,21.89732198]
[1747763309956,4.00809948,2495.0,2494.9,8.7929]
[1747763310157,4.00809948,2495.0,2494.9,17.649476]
[1747763310377,4.00809948,2495.0,2494.9,19.8388782]
[1747763310592,4.00809948,2495.0,2494.9,11.36041891]